fUSD/lending_fUSD_20240627
["ID","MTS","AMOUNT","RATE_DAILY","PERIOD"]
[330489794,1719498634191,-523.7195419,0.0001935,2]
[330489795,1719498634201,-155.0,0.00019399,2]
[330489796,1719498634212,-944.47198158,0.00019399,2]
[330489797,1719498634223,-150.0,0.00019663,2]
[330489798,1719498634233,-216.29869978,0.00019725,2]
[330489799,1719498634244,-367.82760013,0.00019863,2]
[330489800,1719498634254,-18850.08565623,0.000199,2]
[330489802,1719498634264,-1000.0,0.00019944,2]
[330489803,1719498634275,-159.580369,0.00019952,2]
[330489804,1719498634285,-153.622441,0.00019952,2]
[330489805,1719498634301,-182.745874,0.00019952,2]
[330489806,1719498634311,-267.3522,0.00019952,2]
[330489807,1719498634322,-179.659095,0.00019952,2]
[330489808,1719498634333,-163.589328,0.00019952,2]
[330489809,1719498634343,-179.527915,0.00019952,2]
[330489810,1719498634354,-267.3522,0.00020201,2]
[330489811,1719498634363,-250.0,0.0002021,2]
[330489812,1719498634374,-298.83439364,0.00020281,2]
[330489813,1719498634384,-154.44014094,0.00020281,2]
[330489814,1719498634395,-179.659095,0.00020284,2]
[330489815,1719498634404,-179.527915,0.00020284,2]
[330489816,1719498634415,-239.27520382,0.0002033,2]
[330489817,1719498634425,-804.12,0.0002037,3]
[330489818,1719498634435,-17116.49211314,0.0002038,2]
[330489819,1719498634449,-3446.75922984,0.00020381,2]
[330489820,1719498634460,-3446.75922984,0.00020386,2]
[330489821,1719498634470,-17116.49211314,0.00020386,2]
[330489822,1719498634481,-3446.75922984,0.00020388,2]
[330489823,1719498634493,-17116.49211314,0.00020388,2]
[330489824,1719498634503,-782.97031352,0.00020389,2]
[330489825,1719498634513,-17116.49211314,0.00020392,2]
[330489826,1719498634524,-782.97031352,0.00020398,2]
[330489827,1719498634536,-17116.49211314,0.00020399,2]
[330489828,1719498634548,-782.97031352,0.000204,2]
[330489829,1719498634558,-782.97031352,0.00020401,2]
[330489830,1719498634568,-3446.75922984,0.00020402,2]
[330489831,1719498634579,-782.97031352,0.00020407,2]
[330489832,1719498634588,-3446.75922984,0.00020408,2]
[330489833,1719498634599,-173.292284,0.0002041,2]
[330489834,1719498634609,-267.3522,0.0002045,2]
[330489835,1719498634619,-159.580369,0.0002045,2]
[330489836,1719498634629,-182.745874,0.0002045,2]
[330489837,1719498634638,-298.83439357,0.00020571,2]
[330489838,1719498634648,-154.44014092,0.00020571,2]
[330489839,1719498634658,-179.659095,0.00020617,2]
[330489840,1719498634668,-179.527915,0.00020617,2]
[330489841,1719498634678,-267.3522,0.000207,2]
[330489842,1719498634687,-313.88230206,0.00020758,2]
[330489843,1719498634697,-298.83439357,0.00020861,2]
[330489844,1719498634707,-154.44014092,0.00020861,2]
[330489845,1719498634718,-267.3522,0.00020949,2]
[330489846,1719498634727,-159.580369,0.00020949,2]
[330489847,1719498634737,-182.745874,0.00020949,2]
[330489848,1719498634747,-179.659095,0.00020949,2]
[330489849,1719498634757,-179.527915,0.00020949,2]
[330489850,1719498634767,-298.83439357,0.00021151,2]
[330489851,1719498634777,-154.44014092,0.00021151,2]
[330489852,1719498634787,-1000.0,0.00021188,2]
[330489853,1719498634800,-420.31,0.00021322,2]
[330489854,1719498634809,-311.32,0.000214,2]
[330489855,1719498634819,-298.83439357,0.00021441,2]
[330489856,1719498634831,-154.44014092,0.00021441,2]
[330489857,1719498634841,-176.19,0.00021644,2]
[330489858,1719498634851,-511.23,0.00021644,2]
[330489859,1719498634861,-298.83439357,0.0002173,2]
[330489860,1719498634872,-154.44014092,0.0002173,2]
[330489861,1719498634882,-1013.72,0.000218,2]
[330489862,1719498634892,-1013.72,0.000219,2]
[330489863,1719498634902,-300.0,0.000219,7]
[330489864,1719498634912,-890.71,0.00021918,2]
[330489865,1719498634922,-212.97,0.00021918,2]
[330489866,1719498634932,-2000.0,0.00022,2]
[330489867,1719498634943,-600.0,0.00022,8]
[330489868,1719498634954,-298.83439357,0.0002202,2]
[330489869,1719498634964,-154.44014092,0.0002202,2]
[330489870,1719498634975,-3176.14710651,0.00022068,2]
[330489871,1719498634985,-1000.0,0.000221,8]
[330489872,1719498634996,-1300.0,0.000222,8]
[330489873,1719498635007,-326.96863234,0.00022211,2]
[330489874,1719498635018,-159.50287503,0.00022222,2]
[330489875,1719498635028,-159.50287503,0.00022222,2]
[330489876,1719498635038,-1700.0,0.000223,8]
[330489877,1719498635054,-298.83439357,0.0002231,2]
[330489878,1719498635063,-154.44014092,0.0002231,2]
[330489879,1719498635073,-151.0,0.00022393,2]
[330489880,1719498635082,-300.0,0.000224,8]
[330489881,1719498635091,-300.0,0.000225,8]
[330489882,1719498635101,-300.0,0.000226,8]
[330489883,1719498635110,-298.83439357,0.000226,2]
[330489884,1719498635120,-154.44014092,0.000226,2]
[330489885,1719498635130,-1013.72,0.00022605,2]
[330489886,1719498635139,-300.0,0.000227,8]
[330489887,1719498635149,-1013.72,0.00022705,2]
[330489888,1719498635158,-629.7,0.0002279,2]
[330489889,1719498635168,-6651.4594,0.0002279,2]
[330489890,1719498635178,-854.0,0.000228,8]
[330489891,1719498635187,-500.0,0.00022803,2]
[330489892,1719498635197,-200.0,0.00022803,2]
[330489893,1719498635207,-219.54,0.00022877,3]
[330489894,1719498635217,-171.12979609,0.00022889,2]
[330489895,1719498635227,-1088.6681,0.00022889,2]
[330489896,1719498635237,-19047.55251195,0.0002289,2]
[330489897,1719498635247,-182.04870981,0.0002289,2]
[330489898,1719498635257,-298.83439357,0.0002289,2]
[330489899,1719498635267,-154.44014092,0.0002289,2]
[330489900,1719498635279,-159.90731283,0.0002289,4]
[330489901,1719498635288,-319.8099421,0.0002289,2]
[330489902,1719498635300,-391.0334664,0.0002289,2]
[330489903,1719498635309,-174.98775606,0.0002289,2]
[330489904,1719498635318,-4757.6915989,0.0002289,2]
[330489905,1719498635565,-518.26142382,0.00018835,2]
[330489906,1719498635576,-520.06850352,0.00019997,2]
[330489907,1719498635586,-642.98657827,0.0002289,2]
[330489908,1719498635598,-464.79295611,0.0002289,2]
[330489909,1719498635608,-233.85367932,0.0002289,2]
[330489910,1719498635618,-147.07805649,0.0002289,2]
[330489911,1719498635630,-1037.64514351,0.0002289,2]
[330489912,1719498635640,-444.6593,0.0002289,2]
[330489913,1719498635650,-212.0,0.000229,5]
[330489914,1719498635660,-150.5,0.0002296,30]
[330489915,1719498635670,-150.5,0.0002297,30]
[330489916,1719498635680,-286.87002333,0.0002297,3]
[330489917,1719498635689,-365.47794762,0.00022973,2]
[330489918,1719498635699,-286.87002333,0.00022978,3]
[330489919,1719498635708,-286.87002333,0.0002298,3]
[330489920,1719498635718,-150.5,0.0002298,30]
[330489921,1719498635728,-1721.22013998,0.0002298,3]
[330489922,1719498635738,-691.21637433,0.00022988,2]
[330489923,1719498635747,-209.58920091,0.00022988,2]
[330489924,1719498635757,-2000.0,0.00022989,2]
[330489925,1719498635767,-2000.0,0.00022989,2]
[330489926,1719498635777,-1268.8027602,0.00022989,2]
[330489927,1719498635789,-731.1972398,0.00022989,2]
[330489928,1719498635800,-2000.0,0.00022989,2]
[330489929,1719498635810,-2000.0,0.00022989,2]
[330489930,1719498635820,-2000.0,0.00022989,2]
[330489931,1719498635830,-2000.0,0.00022989,2]
[330489932,1719498635840,-2000.0,0.00022989,2]
[330489933,1719498635850,-2000.0,0.00022989,2]
[330489934,1719498635860,-151.0,0.00022989,2]
[330489935,1719498635870,-1000.0,0.00022989,2]
[330489936,1719498635880,-150.0,0.00022989,2]
[330489937,1719498635890,-300.0,0.00022989,2]
[330489938,1719498635900,-450.0,0.00022989,2]
[330489939,1719498635910,-600.0,0.00022989,2]
[330489940,1719498635920,-750.0,0.00022989,2]
[330489941,1719498635929,-251.37924306,0.00022989,2]
[330489942,1719498635939,-49216.17351714,0.0002299,5]
[330489968,1719498639010,-448.0,0.00018835,2]
[330489970,1719498639020,-166.0,0.00018835,2]
[330489972,1719498639031,-640.58728714,0.0002299,7]
[330489974,1719498639043,-2595.94697189,0.0002299,7]
[330489976,1719498639057,-312.18,0.0002299,7]
[330489981,1719498639935,-15923.64784827,0.0002299,7]
[330489982,1719498639950,-1734.29953495,0.0002299,7]
[330489983,1719498639960,-28458.10172105,0.0002299,5]
[330489984,1719498639973,-2341.3503573,0.0002299,5]
[330489985,1719498639987,-1000.91240066,0.0002299,5]
[330489990,1719498641406,-1427.63499995,0.0002299,5]
[330489991,1719498641419,-1284.54201086,0.0002299,5]
[330490050,1719498643784,-1068.0,0.00018835,2]
[330490052,1719498643795,-3690.76546744,0.0002299,5]
[330490053,1719498643807,-3100.56795468,0.0002299,5]
[330490056,1719498643819,-3013.41479949,0.0002299,5]
[330490059,1719498643831,-2336.84711252,0.0002299,5]
[330490064,1719498644355,-2240479.42203588,0.0002299,5]
[330490080,1719498648889,-781.43591257,0.0002299,5]
[330490081,1719498648900,-603.02849108,0.0002299,5]
[330490082,1719498648912,-346920.73762222,0.0002299,5]
[330490083,1719498648923,-359294.10105448,0.0002299,5]
[330490084,1719498705892,501.25,0.00030959,30]
[330490085,1719498706169,501.25,0.00030959,30]
[330490086,1719498706414,500.0,0.00030959,30]
[330490087,1719498706467,501.25,0.00030959,30]
[330490088,1719498706788,501.25,0.00030959,30]
[330490089,1719498706920,1266.09,0.00030959,30]
[330490090,1719498707005,501.25,0.00030959,30]
[330490091,1719498707072,392.42376777,0.00030959,30]
[330490092,1719498707136,1266.09,0.00030959,30]
[330490093,1719498707309,501.25,0.00030959,30]
[330490094,1719498707371,1266.09,0.00030959,30]
[330490095,1719498707595,1266.09,0.00030959,30]
[330490096,1719498707659,501.25,0.00030959,30]
[330490097,1719498707771,500.0,0.00030959,30]
[330490098,1719498707885,500.0,0.00030959,30]
[330490099,1719498707941,1266.09,0.00030959,30]
[330490100,1719498708015,500.0,0.00030959,30]
[330490101,1719498708071,500.0,0.00030959,30]
[330490102,1719498708129,501.25,0.00030959,30]
[330490103,1719498708188,1266.09,0.00030959,30]
[330490104,1719498708268,500.0,0.00030959,30]
[330490105,1719498708324,500.0,0.00030959,30]
[330490106,1719498708393,501.25,0.00030959,30]
[330490107,1719498708443,1163.59,0.00030959,30]
[330490108,1719498708616,500.0,0.00030959,30]
[330490109,1719498708708,1839.45,0.00030959,30]
[330490110,1719498708762,1266.09,0.00030959,30]
[330490111,1719498708841,501.25,0.00030959,30]
[330490112,1719498708924,500.0,0.00030959,30]
[330490113,1719498709001,945.8,0.00030959,30]
[330490114,1719498709054,1266.09,0.00030959,30]
[330490115,1719498709108,1163.59,0.00030959,30]
[330490116,1719498709167,1839.45,0.00030959,30]
[330490117,1719498709265,501.25,0.00030959,30]
[330490118,1719498709451,500.0,0.00030959,30]
[330490119,1719498709516,945.8,0.00030959,30]
[330490120,1719498709575,1266.09,0.00030959,30]
[330490121,1719498709637,501.25,0.00030959,30]
[330490122,1719498709692,1839.45,0.00030959,30]
[330490123,1719498709752,500.0,0.00030959,30]
[330490124,1719498709820,1266.09,0.00030959,30]
[330490125,1719498709875,501.25,0.00030959,30]
[330490126,1719498709936,500.0,0.00030959,30]
[330490127,1719498710010,1163.59,0.00030959,30]
[330490128,1719498710067,624.31945256,0.00030959,30]
[330490129,1719498710124,945.8,0.00030959,30]
[330490130,1719498710183,1839.45,0.00030959,30]
[330490131,1719498710234,500.0,0.00030959,30]
[330490132,1719498710290,501.25,0.00030959,30]
[330490133,1719498710343,1266.09,0.00030959,30]
[330490134,1719498710431,500.0,0.00030959,30]
[330490135,1719498710499,945.8,0.00030959,30]
[330490136,1719498710565,1839.45,0.00030959,30]
[330490137,1719498710624,500.0,0.00030959,30]
[330490138,1719498710689,501.25,0.00030959,30]
[330490139,1719498710747,1266.09,0.00030959,30]
[330490140,1719498710800,500.0,0.00030959,30]
[330490141,1719498710857,1163.59,0.00030959,30]
[330490142,1719498710918,945.8,0.00030959,30]
[330490143,1719498710978,500.0,0.00030959,30]
[330490144,1719498711546,1839.45,0.00030959,30]
[330490145,1719498711633,500.0,0.00030959,30]
[330490146,1719498711690,1266.09,0.00030959,30]
[330490147,1719498711747,501.25,0.00030959,30]
[330490148,1719498711813,945.8,0.00030959,30]
[330490149,1719498711873,500.0,0.00030959,30]
[330490150,1719498711933,1839.45,0.00030959,30]
[330490151,1719498712002,500.0,0.00030959,30]
[330490152,1719498712058,1163.59,0.00030959,30]
[330490153,1719498712109,501.25,0.00030959,30]
[330490154,1719498712173,1266.09,0.00030959,30]
[330490155,1719498712228,945.8,0.00030959,30]
[330490156,1719498712284,500.0,0.00030959,30]
[330490157,1719498712341,1839.45,0.00030959,30]
[330490158,1719498712418,500.0,0.00030959,30]
[330490159,1719498712494,501.25,0.00030959,30]
[330490160,1719498712562,1266.09,0.00030959,30]
[330490161,1719498712621,500.0,0.00030959,30]
[330490162,1719498712679,945.8,0.00030959,30]
[330490163,1719498712747,1839.45,0.00030959,30]
[330490164,1719498712831,501.25,0.00030959,30]
[330490165,1719498712888,500.0,0.00030959,30]
[330490166,1719498712946,1266.09,0.00030959,30]
[330490167,1719498713004,945.8,0.00030959,30]
[330490168,1719498713059,500.0,0.00030959,30]
[330490169,1719498713116,1839.45,0.00030959,30]
[330490170,1719498713195,501.25,0.00030959,30]
[330490171,1719498713259,500.0,0.00030959,30]
[330490172,1719498713321,945.8,0.00030959,30]
[330490173,1719498713380,500.0,0.00030959,30]
[330490174,1719498713440,1839.45,0.00030959,30]
[330490175,1719498713519,501.25,0.00030959,30]
[330490176,1719498713581,1163.59,0.00030959,30]
[330490177,1719498713676,945.8,0.00030959,30]
[330490178,1719498713733,500.0,0.00030959,30]
[330490179,1719498713787,1266.09,0.00030959,30]
[330490180,1719498714905,1839.45,0.00030959,30]
[330490181,1719498715060,501.25,0.00030959,30]
[330490182,1719498715120,945.8,0.00030959,30]
[330490183,1719498715176,383.41987034,0.00030959,30]
[330490184,1719498715232,1839.45,0.00030959,30]
[330490185,1719498715286,1266.09,0.00030959,30]
[330490186,1719498715362,500.0,0.00030959,30]
[330490187,1719498715443,501.25,0.00030959,30]
[330490188,1719498715511,945.8,0.00030959,30]
[330490189,1719498715569,1163.59,0.00030959,30]
[330490190,1719498715612,1839.45,0.00030959,30]
[330490191,1719498715655,1266.09,0.00030959,30]
[330490192,1719498715701,641.46,0.00030959,30]
[330490193,1719498715756,501.45332493,0.00030959,30]
[330490194,1719498715799,500.0,0.00030959,30]
[330490195,1719498715848,945.8,0.00030959,30]
[330490196,1719498715931,1839.45,0.00030959,30]
[330490197,1719498715988,1266.09,0.00030959,30]
[330490198,1719498716122,500.0,0.00030959,30]
[330490199,1719498716162,1163.59,0.00030959,30]
[330490200,1719498716211,945.8,0.00030959,30]
[330490201,1719498716261,1266.09,0.00030959,30]
[330490202,1719498716304,1839.45,0.00030959,30]
[330490203,1719498716371,500.0,0.00030959,30]
[330490204,1719498716413,945.8,0.00030959,30]
[330490205,1719498716455,1266.09,0.00030959,30]
[330490206,1719498716497,500.0,0.00030959,30]
[330490207,1719498716540,1839.45,0.00030959,30]
[330490208,1719498716586,1163.59,0.00030959,30]
[330490209,1719498716639,549.11019388,0.00030959,30]
[330490210,1719498716684,2333.19,0.00030959,30]
[330490211,1719498716734,1266.09,0.00030959,30]
[330490212,1719498716816,1839.45,0.00030959,30]
[330490213,1719498716868,1163.59,0.00030959,30]
[330490214,1719498716980,945.8,0.00030959,30]
[330490215,1719498717024,1266.09595167,0.00030959,30]
[330490216,1719498717097,270.37609489,0.00030959,30]
[330490217,1719498717146,2333.19,0.00030959,30]
[330490218,1719498717190,945.8,0.00030959,30]
[330490219,1719498717232,1839.45,0.00030959,30]
[330490220,1719498717276,500.0,0.00030959,30]
[330490221,1719498717339,945.8,0.00030959,30]
[330490222,1719498717416,1839.45,0.00030959,30]
[330490223,1719498717467,1163.59,0.00030959,30]
[330490224,1719498717518,2333.19,0.00030959,30]
[330490225,1719498717564,945.8,0.00030959,30]
[330490226,1719498717608,1715.37,0.00030959,30]
[330490227,1719498717728,1839.45,0.00030959,30]
[330490228,1719498717785,1492.2,0.00030959,30]
[330490229,1719498717848,2333.19,0.00030959,30]
[330490230,1719498717903,1163.59,0.00030959,30]
[330490231,1719498718000,1412.03,0.00030959,30]
[330490232,1719498718043,945.8,0.00030959,30]
[330490233,1719498718095,1839.45,0.00030959,30]
[330490234,1719498718154,1492.2,0.00030959,30]
[330490235,1719498718195,945.8,0.00030959,30]
[330490236,1719498718236,1412.03,0.00030959,30]
[330490237,1719498718277,1715.37,0.00030959,30]
[330490238,1719498718687,500.0,0.00030959,30]
[330490239,1719498718744,500.0,0.00030959,30]
[330490240,1719498718787,1839.45,0.00030959,30]
[330490241,1719498718844,1492.2,0.00030959,30]
[330490242,1719498718887,945.8,0.00030959,30]
[330490243,1719498718958,1412.03,0.00030959,30]
[330490244,1719498719048,1715.37,0.00030959,30]
[330490245,1719498719112,500.0,0.00030959,30]
[330490246,1719498719168,1839.66071228,0.00030959,30]
[330490247,1719498719274,1492.2,0.00030959,30]
[330490248,1719498719324,1412.03,0.00030959,30]
[330490249,1719498719365,500.0,0.00030959,30]
[330490250,1719498719415,500.0,0.00030959,30]
[330490251,1719498719460,1715.37,0.00030959,30]
[330490252,1719498719532,1492.2,0.00030959,30]
[330490253,1719498719580,945.96632247,0.00030959,30]
[330490254,1719498719627,1412.03,0.00030959,30]
[330490255,1719498719667,500.0,0.00030959,30]
[330490256,1719498719709,500.0,0.00030959,30]
[330490257,1719498719760,500.0,0.00030959,30]
[330490258,1719498719807,1715.37,0.00030959,30]
[330490259,1719498719847,467.17,0.00030959,30]
[330490260,1719498719893,500.0,0.00030959,30]
[330490261,1719498719938,500.0,0.00030959,30]
[330490262,1719498719979,1492.2,0.00030959,30]
[330490263,1719498720025,1715.37,0.00030959,30]
[330490264,1719498720072,500.0,0.00030959,30]
[330490265,1719498720121,500.0,0.00030959,30]
[330490266,1719498720169,1492.2,0.00030959,30]
[330490267,1719498720214,1412.03,0.00030959,30]
[330490268,1719498720257,2333.19,0.00030959,30]
[330490269,1719498720302,1163.59,0.00030959,30]
[330490270,1719498720354,500.0,0.00030959,30]
[330490271,1719498720400,1715.37,0.00030959,30]
[330490272,1719498720447,500.0,0.00030959,30]
[330490273,1719498720495,500.0,0.00030959,30]
[330490274,1719498720539,1492.2,0.00030959,30]
[330490275,1719498720594,1412.03,0.00030959,30]
[330490276,1719498720799,500.0,0.00030959,30]
[330490277,1719498720843,500.0,0.00030959,30]
[330490278,1719498720890,1715.37,0.00030959,30]
[330490279,1719498720972,1492.2,0.00030959,30]
[330490280,1719498721043,500.0,0.00030959,30]
[330490281,1719498721109,1412.03,0.00030959,30]
[330490282,1719498721152,1163.59,0.00030959,30]
[330490283,1719498721202,500.0,0.00030959,30]
[330490284,1719498721245,500.0,0.00030959,30]
[330490285,1719498721296,2333.19,0.00030959,30]
[330490286,1719498721338,1492.2,0.00030959,30]
[330490287,1719498721380,1715.37,0.00030959,30]
[330490288,1719498721426,500.0,0.00030959,30]
[330490289,1719498721469,1412.03,0.00030959,30]
[330490290,1719498721526,1163.59,0.00030959,30]
[330490291,1719498721569,500.0,0.00030959,30]
[330490292,1719498721613,500.0,0.00030959,30]
[330490293,1719498721674,500.0,0.00030959,30]
[330490294,1719498721803,1492.2,0.00030959,30]
[330490295,1719498722289,500.0,0.00030959,30]
[330490296,1719498722365,1715.37,0.00030959,30]
[330490297,1719498722410,1412.03,0.00030959,30]
[330490298,1719498722450,500.0,0.00030959,30]
[330490299,1719498722491,500.0,0.00030959,30]
[330490300,1719498722541,500.0,0.00030959,30]
[330490301,1719498722590,241.67049804,0.00030959,30]
[330490302,1719498722636,500.0,0.00030959,30]
[330490303,1719498722681,1715.37,0.00030959,30]
[330490304,1719498722738,1492.2,0.00030959,30]
[330490305,1719498722791,500.0,0.00030959,30]
[330490306,1719498722834,1412.03,0.00030959,30]
[330490307,1719498722894,2333.19,0.00030959,30]
[330490308,1719498722945,500.0,0.00030959,30]
[330490309,1719498723057,500.0,0.00030959,30]
[330490310,1719498723100,556.1,0.00030959,30]
[330490311,1719498723162,1715.37,0.00030959,30]
[330490312,1719498723222,1492.2,0.00030959,30]
[330490313,1719498723287,1412.03,0.00030959,30]
[330490314,1719498723370,500.0,0.00030959,30]
[330490315,1719498723463,500.0,0.00030959,30]
[330490316,1719498723593,500.0,0.00030959,30]
[330490317,1719498723640,500.0,0.00030959,30]
[330490318,1719498723693,2333.19,0.00030959,30]
[330490319,1719498723743,1715.37,0.00030959,30]
[330490320,1719498723786,1492.2,0.00030959,30]
[330490321,1719498723844,1412.03,0.00030959,30]
[330490322,1719498723887,500.0,0.00030959,30]
[330490323,1719498723933,500.0,0.00030959,30]
[330490324,1719498723984,500.0,0.00030959,30]
[330490325,1719498724030,1163.59,0.00030959,30]
[330490326,1719498724081,1492.2,0.00030959,30]
[330490327,1719498724125,1715.37,0.00030959,30]
[330490328,1719498724175,1412.03,0.00030959,30]
[330490329,1719498724221,565.47089614,0.00030959,30]
[330490330,1719498724276,500.0,0.00030959,30]
[330490331,1719498724322,500.0,0.00030959,30]
[330490332,1719498724368,500.0,0.00030959,30]
[330490333,1719498724423,500.0,0.00030959,30]
[330490334,1719498724467,1492.2,0.00030959,30]
[330490335,1719498724527,1715.37,0.00030959,30]
[330490336,1719498724618,500.0,0.00030959,30]
[330490337,1719498724662,1412.03,0.00030959,30]
[330490338,1719498724712,500.0,0.00030959,30]
[330490339,1719498724818,1715.37,0.00030959,30]
[330490340,1719498724866,1163.59,0.00030959,30]
[330490341,1719498725864,1412.03,0.00030959,30]
[330490342,1719498725906,500.0,0.00030959,30]
[330490343,1719498725948,2333.19,0.00030959,30]
[330490344,1719498725999,621.61,0.00030959,30]
[330490345,1719498726048,664.33,0.00030959,30]
[330490346,1719498726121,500.0,0.00030959,30]
[330490347,1719498726187,1715.37,0.00030959,30]
[330490348,1719498726241,1412.03,0.00030959,30]
[330490349,1719498726282,500.0,0.00030959,30]
[330490350,1719498726335,1492.2,0.00030959,30]
[330490351,1719498726382,500.0,0.00030959,30]
[330490352,1719498726424,664.33,0.00030959,30]
[330490353,1719498726484,500.0,0.00030959,30]
[330490354,1719498726526,1412.03,0.00030959,30]
[330490355,1719498726569,1715.37,0.00030959,30]
[330490356,1719498726634,500.0,0.00030959,30]
[330490357,1719498726769,1492.2,0.00030959,30]
[330490358,1719498726809,1163.59,0.00030959,30]
[330490359,1719498726850,500.0,0.00030959,30]
[330490360,1719498726894,664.33,0.00030959,30]
[330490361,1719498726938,1715.37,0.00030959,30]
[330490362,1719498726987,1412.03,0.00030959,30]
[330490363,1719498727092,500.0,0.00030959,30]
[330490364,1719498727170,1492.2,0.00030959,30]
[330490365,1719498727214,500.0,0.00030959,30]
[330490366,1719498727277,664.33,0.00030959,30]
[330490367,1719498727349,1715.37,0.00030959,30]
[330490368,1719498727448,1412.03,0.00030959,30]
[330490369,1719498727509,500.0,0.00030959,30]
[330490370,1719498727551,500.0,0.00030959,30]
[330490371,1719498727593,2333.19,0.00030959,30]
[330490372,1719498727637,500.0,0.00030959,30]
[330490373,1719498727677,1492.2,0.00030959,30]
[330490374,1719498727716,500.0,0.00030959,30]
[330490375,1719498727755,500.0,0.00030959,30]
[330490376,1719498727798,664.33,0.00030959,30]
[330490377,1719498727842,1715.37,0.00030959,30]
[330490378,1719498727888,1412.03,0.00030959,30]
[330490379,1719498727926,500.0,0.00030959,30]
[330490380,1719498727975,610.74797525,0.00030959,30]
[330490381,1719498728171,1492.2,0.00030959,30]
[330490382,1719498728211,500.0,0.00030959,30]
[330490383,1719498728270,500.0,0.00030959,30]
[330490384,1719498728318,664.33,0.00030959,30]
[330490385,1719498728384,1163.59,0.00030959,30]
[330490386,1719498728438,1715.37,0.00030959,30]
[330490387,1719498728485,1412.03,0.00030959,30]
[330490388,1719498728527,500.0,0.00030959,30]
[330490389,1719498728573,2333.19,0.00030959,30]
[330490390,1719498728621,1492.2,0.00030959,30]
[330490391,1719498728661,500.0,0.00030959,30]
[330490392,1719498728708,500.0,0.00030959,30]
[330490393,1719498728754,664.33,0.00030959,30]
[330490394,1719498728852,1715.37,0.00030959,30]
[330490395,1719498728896,500.0,0.00030959,30]
[330490396,1719498728938,1412.03,0.00030959,30]
[330490397,1719498728984,216.97,0.00030959,30]
[330490398,1719498729028,1492.2,0.00030959,30]
[330490399,1719498729074,664.33,0.00030959,30]
[330490400,1719498729118,500.0,0.00030959,30]
[330490401,1719498729163,1715.52907891,0.00030959,30]
[330490402,1719498729214,500.0,0.00030959,30]
[330490403,1719498729256,1412.13210786,0.00030959,30]
[330490404,1719498729303,664.33,0.00030959,30]
[330490405,1719498729352,1163.59,0.00030959,30]
[330490406,1719498729412,1492.42513609,0.00030959,30]
[330490407,1719498729461,500.0,0.00030959,30]
[330490408,1719498729540,500.0,0.00030959,30]
[330490409,1719498729581,2333.19,0.00030959,30]
[330490410,1719498729640,664.33,0.00030959,30]
[330490411,1719498729698,500.0,0.00030959,30]
[330490412,1719498729744,500.0,0.00030959,30]
[330490413,1719498729786,1795.6,0.00030959,30]